bitfinex/quotes_BTCUSD_20240908
["timestamp","ask_amount","ask_price","bid_price","bid_amount"]
[1725773044590,1.14258807,54607.0,54606.0,0.00156529]
[1725773045117,1.14258807,54607.0,54606.0,0.00356529]
[1725773045550,1.11387063,54607.0,54606.0,0.00356529]
[1725773045971,1.1425882,54607.0,54606.0,0.00356529]
[1725773046208,1.21927063,54607.0,54606.0,0.00656529]
[1725773046826,1.21927063,54607.0,54606.0,0.00356529]
[1725773047233,1.22027063,54607.0,54606.0,0.00356529]
[1725773047435,1.22027063,54607.0,54606.0,0.00156529]
[1725773047636,1.21927063,54607.0,54606.0,0.00156529]
[1725773047980,1.22227063,54607.0,54606.0,0.00256529]
[1725773048392,1.21927063,54607.0,54606.0,0.00156529]
[1725773048811,1.22227063,54607.0,54606.0,0.00256529]
[1725773049012,1.22227063,54607.0,54606.0,0.00356529]
[1725773049013,1.25798942,54607.0,54606.0,0.00356529]
[1725773049240,1.25498942,54607.0,54606.0,0.00256529]
[1725773049447,1.24798942,54607.0,54606.0,0.00256529]
[1725773049653,1.25798942,54607.0,54606.0,0.00356529]
[1725773050064,1.25098942,54607.0,54606.0,0.00256529]
[1725773050484,1.25798942,54607.0,54606.0,0.00356529]
[1725773051107,1.28490713,54607.0,54606.0,0.00356529]
[1725773051353,1.28190713,54607.0,54606.0,0.00256529]
[1725773051775,1.29090713,54607.0,54606.0,0.00356529]
[1725773052647,0.73173517,54607.0,54606.0,0.00356529]
[1725773052836,0.81963013,54607.0,54606.0,0.00356529]
[1725773053531,0.77175467,54607.0,54606.0,0.00356529]
[1725773056901,0.79475467,54607.0,54606.0,0.00356529]
[1725773058653,1.05113167,54607.0,54606.0,0.00356529]
[1725773060138,1.09900758,54607.0,54606.0,0.00356529]
[1725773062563,1.18550758,54607.0,54606.0,0.00356529]
[1725773062764,1.29090758,54607.0,54606.0,0.00356529]
[1725773062897,1.42815304,54607.0,54606.0,0.00356529]
[1725773063104,1.29090758,54607.0,54606.0,0.00356529]
[1725773063515,0.384636,54597.0,54596.0,0.53278336]
[1725773063743,0.47253096,54597.0,54596.0,0.53278336]
[1725773063941,0.47253096,54597.0,54596.0,0.0999]
[1725773064142,0.5012515,54597.0,54596.0,0.0999]
[1725773064355,0.5012515,54597.0,54594.0,0.0833]
[1725773064356,0.384649,54595.0,54594.0,0.0833]
[1725773066287,0.384649,54595.0,54594.0,0.0873]
[1725773066907,0.384649,54595.0,54594.0,0.0923]
[1725773067147,0.384649,54595.0,54594.0,0.0873]
[1725773067352,0.384649,54595.0,54594.0,0.0903]
[1725773067975,0.41337001,54595.0,54594.0,0.0903]
[1725773068438,0.384649,54595.0,54594.0,0.0863]
[1725773068645,0.384649,54595.0,54594.0,0.0883]
[1725773069944,0.41336974,54595.0,54594.0,0.0883]
[1725773070759,0.41336974,54595.0,54594.0,0.0853]
[1725773071295,0.41336974,54595.0,54594.0,0.0873]
[1725773072029,0.41336974,54595.0,54594.0,0.0853]
[1725773072890,0.15693674,54595.0,54594.0,0.0833]
[1725773073123,0.15793674,54595.0,54594.0,0.0853]
[1725773073335,0.15793674,54595.0,54594.0,0.0833]
[1725773074668,0.02972074,54595.0,54594.0,0.0833]
[1725773074965,0.15793674,54595.0,54594.0,0.0833]
[1725773075169,0.15693674,54595.0,54594.0,0.0833]
[1725773075423,0.17609341,54595.0,54594.0,0.0833]
[1725773075665,0.14737267,54595.0,54594.0,0.0833]
[1725773076121,0.128216,54595.0,54594.0,0.0853]
[1725773076804,0.128216,54595.0,54594.0,0.086932]
[1725773079127,0.15693677,54595.0,54594.0,0.086932]
[1725773082338,0.02872077,54595.0,54594.0,0.086932]
[1725773083483,0.15693677,54595.0,54594.0,0.086932]
[1725773084780,0.02872077,54595.0,54594.0,0.086932]
[1725773085676,0.02624267,54597.0,54595.0,0.128215]
[1725773086117,0.23809657,54599.0,54595.0,0.128215]
[1725773086522,0.01915667,54597.0,54595.0,0.128215]
[1725773086951,0.02115667,54597.0,54595.0,0.128215]
[1725773087184,0.02215667,54597.0,54595.0,0.128215]
[1725773087861,0.02215667,54597.0,54594.0,0.084932]
[1725773088291,0.02215667,54597.0,54594.0,0.21315]
[1725773088292,0.02215667,54597.0,54595.0,0.128216]
[1725773088528,0.02115667,54597.0,54595.0,0.128216]
[1725773088756,0.01915667,54597.0,54595.0,0.128216]
[1725773088975,0.000816,54596.0,54594.0,0.084932]
[1725773089413,0.000816,54596.0,54594.0,0.21315]
[1725773089840,0.000816,54596.0,54594.0,0.12985]
[1725773090465,0.000816,54596.0,54594.0,0.001632]
[1725773090910,0.000816,54596.0,54594.0,0.131851]
[1725773091144,0.000816,54596.0,54595.0,0.002]
[1725773091613,0.000816,54596.0,54594.0,0.003632]
[1725773091836,0.000816,54596.0,54594.0,0.006632]
[1725773092053,0.128216,54595.0,54594.0,0.003632]
[1725773092503,0.128216,54595.0,54594.0,0.001632]
[1725773093770,0.128216,54595.0,54594.0,0.004632]
[1725773094117,0.1115831,54599.0,54594.0,0.007632]
[1725773094323,0.128216,54595.0,54594.0,0.007632]
[1725773094556,0.128216,54595.0,54594.0,0.004632]
[1725773094768,0.128216,54595.0,54594.0,0.008632]
[1725773095465,0.384649,54595.0,54594.0,0.008632]
[1725773095642,0.384649,54595.0,54594.0,0.005632]
[1725773096912,0.384649,54595.0,54594.0,0.008632]
[1725773099206,0.641082,54595.0,54594.0,0.008632]
[1725773099438,0.69280355,54595.0,54594.0,0.008632]
[1725773100494,0.69280355,54595.0,54594.0,0.005632]
[1725773100721,0.69280355,54595.0,54594.0,0.001632]
[1725773100927,0.69480355,54595.0,54594.0,0.001632]
[1725773101757,0.41537055,54595.0,54594.0,0.091732]
[1725773102429,0.41337055,54595.0,54594.0,0.091732]
[1725773102655,0.41337055,54595.0,54594.0,0.093732]
[1725773104661,0.5509272,54595.0,54594.0,0.093732]
[1725773105299,0.41337055,54595.0,54594.0,0.093732]
[1725773105709,0.5509272,54595.0,54594.0,0.093732]
[1725773105875,0.41337055,54595.0,54594.0,0.093732]
[1725773106081,0.52347929,54595.0,54594.0,0.093732]
[1725773106441,0.49475774,54595.0,54594.0,0.093732]
[1725773106857,0.5234791,54595.0,54594.0,0.093732]
[1725773107533,0.41337036,54595.0,54594.0,0.093732]
[1725773107932,0.52350806,54595.0,54594.0,0.093732]
[1725773108537,0.384649,54595.0,54594.0,0.093732]
[1725773109314,0.128216,54595.0,54594.0,0.093732]
[1725773110169,0.15693669,54595.0,54594.0,0.093732]
[1725773110397,0.29463857,54595.0,54594.0,0.093732]
[1725773110600,0.15693669,54595.0,54594.0,0.093732]
[1725773112131,0.02872069,54595.0,54594.0,0.093732]
[1725773112330,0.15693669,54595.0,54594.0,0.093732]
[1725773113162,0.15693669,54595.0,54594.0,0.0936676]
[1725773113583,0.55107157,54595.0,54594.0,0.0065676]
[1725773114248,0.55107157,54595.0,54594.0,0.0045676]
[1725773114454,0.63896653,54595.0,54594.0,0.0045676]
[1725773114664,0.63896653,54595.0,54594.0,0.0015676]
[1725773114872,0.63896653,54595.0,54594.0,0.0035676]
[1725773115745,0.61024584,54595.0,54594.0,0.0035676]
[1725773116425,0.47254396,54595.0,54594.0,0.0035676]
[1725773117786,0.72897696,54595.0,54594.0,0.0035676]
[1725773118024,0.75197696,54595.0,54594.0,0.0035676]
[1725773119184,0.78069882,54595.0,54594.0,0.0035676]
[1725773120691,0.86289882,54595.0,54594.0,0.0035676]
[1725773121129,0.86289882,54595.0,54594.0,0.0015676]
[1725773121558,0.86389882,54595.0,54594.0,0.0015676]
[1725773122441,0.86589882,54595.0,54594.0,0.0015676]
[1725773122888,1.12233182,54595.0,54594.0,0.0015676]
[1725773124263,1.28757407,54595.0,54594.0,0.0015676]
[1725773124485,1.12233182,54595.0,54594.0,0.0015676]
[1725773126059,1.13233182,54595.0,54594.0,0.0015676]
[1725773126582,1.10360996,54595.0,54594.0,0.0015676]
[1725773127039,1.10442596,54595.0,54594.0,0.0015676]
[1725773127721,1.09442596,54595.0,54594.0,0.0015676]
[1725773127930,1.006531,54595.0,54594.0,0.0015676]
[1725773128138,1.09442596,54595.0,54594.0,0.0015676]
[1725773129187,1.38958292,54595.0,54594.0,0.0015676]
[1725773129418,1.39158292,54595.0,54594.0,0.0015676]
[1725773130091,1.49688292,54595.0,54594.0,0.0015676]
[1725773130316,1.66201459,54595.0,54594.0,0.0015676]
[1725773131716,1.66001459,54595.0,54594.0,0.0015676]
[1725773131935,1.65901459,54595.0,54594.0,0.0015676]
[1725773132402,1.66601459,54595.0,54594.0,0.0025676]
[1725773132677,1.67101459,54595.0,54594.0,0.0025676]
[1725773133111,1.66601459,54595.0,54594.0,0.0025676]
[1725773133574,1.67301459,54595.0,54594.0,0.0035676]
[1725773134312,1.68036459,54595.0,54594.0,0.0035676]
[1725773135648,1.65164063,54595.0,54594.0,0.0035676]
[1725773135855,1.48650896,54595.0,54594.0,0.0035676]
[1725773136478,1.48650896,54595.0,54594.0,0.00350292]
[1725773136479,1.65159319,54595.0,54594.0,0.00350292]
[1725773138185,1.46639477,54595.0,54594.0,0.00350292]
[1725773139094,1.49512085,54595.0,54594.0,0.00350292]
[1725773145440,1.46639477,54595.0,54594.0,0.00350292]
[1725773150044,1.49512074,54595.0,54594.0,0.00350292]
[1725773150251,1.154074,54589.0,54588.0,0.00164]
[1725773150468,1.49347879,54589.0,54588.0,0.00164]
[1725773150833,1.37714295,54589.0,54588.0,0.00164]
[1725773151238,1.4058699,54589.0,54588.0,0.00164]
[1725773153163,1.4038699,54589.0,54588.0,0.00164]
[1725773153373,1.4078699,54589.0,54588.0,0.00164]
[1725773154506,1.4128699,54589.0,54588.0,0.00164]
[1725773156937,1.4202209,54589.0,54588.0,0.00164]
[1725773158357,1.44678226,54589.0,54588.0,0.00164]
[1725773158591,1.36578226,54589.0,54588.0,0.00164]
[1725773158814,1.10932126,54589.0,54588.0,0.00164]
[1725773159039,1.10932126,54589.0,54588.0,0.00157562]
[1725773159936,1.0114263,54589.0,54588.0,0.00157562]
[1725773160140,1.10197026,54589.0,54588.0,0.00157562]
[1725773160356,1.09197026,54589.0,54588.0,0.00157562]
[1725773160577,0.4681533,54589.0,54588.0,0.07917562]
[1725773160791,0.55604826,54589.0,54588.0,0.07917562]
[1725773161003,0.69355216,54589.0,54588.0,0.07917562]
[1725773161223,0.95001316,54589.0,54588.0,0.07917562]
[1725773161428,0.69355216,54589.0,54588.0,0.07917562]
[1725773161635,0.64565122,54589.0,54588.0,0.07917562]
[1725773161865,0.66365122,54589.0,54588.0,0.07917562]
[1725773162047,0.66865122,54589.0,54588.0,0.07917562]
[1725773162303,0.66465122,54589.0,54588.0,0.07917562]
[1725773162509,0.43925236,54589.0,54588.0,0.07917562]
[1725773162720,0.52914732,54589.0,54588.0,0.07917562]
[1725773163378,0.52414732,54589.0,54588.0,0.07917562]
[1725773163783,0.52714732,54589.0,54588.0,0.07917562]
[1725773164202,0.24768632,54589.0,54588.0,0.07917562]
[1725773165766,0.27068632,54589.0,54588.0,0.07917562]
[1725773165991,0.27068632,54589.0,54588.0,0.17777562]
[1725773169420,0.31858566,54589.0,54588.0,0.17777562]
[1725773171349,0.57504666,54589.0,54588.0,0.17777562]
[1725773175657,0.54632131,54589.0,54588.0,0.17777562]
[1725773176721,0.80278231,54589.0,54588.0,0.00157562]
[1725773177448,0.83150847,54589.0,54588.0,0.00157562]
[1725773178786,0.80278231,54589.0,54588.0,0.00157562]
[1725773179007,0.83150873,54589.0,54588.0,0.00157562]
[1725773180410,0.65734654,54589.0,54588.0,0.00157562]
[1725773180633,0.7682415,54589.0,54588.0,0.00157562]
[1725773180848,0.8964715,54589.0,54588.0,0.00157562]
[1725773181282,0.92390122,54589.0,54588.0,0.00157562]
[1725773185929,0.92471722,54589.0,54588.0,0.00157562]
[1725773186973,0.92471722,54589.0,54588.0,0.18097562]
[1725773187195,0.15647572,54589.0,54588.0,0.18097562]
[1725773187612,0.02824572,54589.0,54588.0,0.18097562]
[1725773187886,0.15647572,54589.0,54588.0,0.18097562]
[1725773188846,0.15747572,54589.0,54588.0,0.18097562]
[1725773189045,0.18620008,54589.0,54588.0,0.18097562]
[1725773189314,0.18720008,54589.0,54588.0,0.18097562]
[1725773189737,0.18620008,54589.0,54588.0,0.18097562]
[1725773190020,0.18620008,54589.0,54588.0,0.18197562]
[1725773190372,0.3832139,54589.0,54588.0,0.18197562]
[1725773192229,0.6396749,54589.0,54588.0,0.18197562]
[1725773194471,0.3832139,54589.0,54588.0,0.18197562]
[1725773195351,0.38318468,54589.0,54588.0,0.18197562]
[1725773195785,0.35446032,54589.0,54588.0,0.18197562]
[1725773195986,0.37363431,54589.0,54588.0,0.18197562]
[1725773198133,0.63009531,54589.0,54588.0,0.18197562]
[1725773198999,0.65881988,54589.0,54588.0,0.18197562]
[1725773199455,0.65881988,54589.0,54588.0,0.18097562]
[1725773199673,0.65981988,54589.0,54588.0,0.18097562]
[1725773200573,0.65981319,54589.0,54588.0,0.18097562]
[1725773200781,0.66081319,54589.0,54588.0,0.18097562]
[1725773203430,0.65981319,54589.0,54588.0,0.18097562]
[1725773203650,0.54973024,54589.0,54588.0,0.18097562]
[1725773203857,0.68635071,54589.0,54588.0,0.18197562]
[1725773204077,0.54873024,54589.0,54588.0,0.18197562]
[1725773205132,0.54973024,54589.0,54588.0,0.18197562]
[1725773205785,0.52100567,54589.0,54588.0,0.18197562]
[1725773206018,0.77746667,54589.0,54588.0,0.00157562]
[1725773206446,0.77846667,54589.0,54588.0,0.00157562]
[1725773209101,0.80719146,54589.0,54588.0,0.00157562]
[1725773215594,0.77846667,54589.0,54588.0,0.00157562]
[1725773216881,0.21613296,54586.0,54585.0,0.07246359]
[1725773217135,0.32626448,54586.0,54585.0,0.07246359]
[1725773218217,0.32626448,54586.0,54585.0,0.07446359]
[1725773218906,0.35498961,54586.0,54585.0,0.07446359]
[1725773219601,0.35498961,54586.0,54585.0,0.07746359]
[1725773220450,0.61146561,54586.0,54585.0,0.07246359]
[1725773220807,0.61146561,54586.0,54585.0,0.07709559]
[1725773223378,0.61146561,54586.0,54585.0,0.004632]
[1725773224683,0.61147399,54586.0,54585.0,0.004632]
[1725773225647,0.58274886,54586.0,54585.0,0.004632]
[1725773226962,0.61028384,54586.0,54585.0,0.004632]
[1725773229025,0.63900934,54586.0,54585.0,0.004632]
[1725773231513,0.63900934,54586.0,54585.0,0.003632]
[1725773232886,0.64100934,54586.0,54585.0,0.003632]
[1725773233390,0.64100934,54586.0,54585.0,0.001632]
[1725773234265,0.64300934,54586.0,54585.0,0.001632]
[1725773235655,0.61428384,54586.0,54585.0,0.001632]
[1725773236761,0.61028384,54586.0,54585.0,0.001632]
[1725773236989,0.61128384,54586.0,54585.0,0.001632]
[1725773237435,0.61228384,54586.0,54585.0,0.001632]
[1725773238979,0.64100933,54586.0,54585.0,0.001632]
[1725773239214,0.50333445,54586.0,54585.0,0.001632]
[1725773239932,0.75981045,54586.0,54585.0,0.001632]
[1725773242997,0.67191549,54586.0,54585.0,0.001632]
[1725773243204,0.75981045,54586.0,54585.0,0.001632]
[1725773245691,0.18667709,54595.0,54585.0,0.001632]
[1725773245692,0.000816,54597.0,54596.0,0.317629]
[1725773245918,0.0333172,54614.0,54606.0,0.384573]
[1725773246129,0.000815,54614.0,54606.0,1.08523196]
[1725773246553,0.01917399,54608.0,54606.0,1.24643196]
[1725773247658,0.128144,54626.0,54617.0,0.1612]
[1725773247875,0.128144,54626.0,54617.0,0.288364]
[1725773248109,0.128144,54626.0,54617.0,0.287364]
[1725773248321,0.08789496,54627.0,54618.0,0.128161]
[1725773248539,0.023,54626.0,54618.0,0.128161]
[1725773249801,0.023,54626.0,54619.0,0.12816]
[1725773250060,0.024,54626.0,54619.0,0.12816]
[1725773250285,0.024,54626.0,54620.0,0.128157]
[1725773250490,0.023,54626.0,54620.0,0.128157]
[1725773250928,0.024,54626.0,54620.0,0.128157]
[1725773251373,0.023,54626.0,54620.0,0.128157]
[1725773251606,0.023,54626.0,54619.0,0.384478]
[1725773251819,0.024,54626.0,54619.0,0.25632]
[1725773252273,0.024,54626.0,54620.0,0.128156]
[1725773253167,0.023,54626.0,54621.0,0.128154]
[1725773253390,0.023,54626.0,54619.0,0.25632]
[1725773253391,0.024,54626.0,54622.0,0.128153]
[1725773253605,0.001,54626.0,54619.0,0.25632]
[1725773253799,0.08789496,54627.0,54623.0,0.128149]
[1725773254274,0.001,54626.0,54624.0,0.128148]
[1725773254534,0.001,54626.0,54625.0,0.128146]
[1725773254779,0.08789496,54627.0,54625.0,0.128146]
[1725773254999,0.001,54626.0,54624.0,0.128148]
[1725773255214,0.001,54626.0,54625.0,0.128146]
[1725773256756,0.000816,54626.0,54625.0,0.128146]
[1725773257182,0.001816,54626.0,54625.0,0.128146]
[1725773258604,0.0107298,54626.0,54625.0,0.128146]
[1725773259501,0.0394364,54626.0,54625.0,0.128146]
[1725773264050,0.05861039,54626.0,54625.0,0.128146]
[1725773265552,0.02990379,54626.0,54625.0,0.128146]
[1725773268793,0.05861042,54626.0,54625.0,0.128146]
[1725773274276,0.05861042,54626.0,54625.0,0.384438]
[1725773274769,0.05861042,54626.0,54625.0,0.64073]
[1725773274976,0.0107298,54626.0,54625.0,0.993222]
[1725773275213,0.001816,54626.0,54625.0,0.993222]
[1725773275853,0.000816,54626.0,54625.0,0.993222]
[1725773276281,0.001816,54626.0,54625.0,0.993222]
[1725773276708,0.000816,54626.0,54625.0,0.993222]
[1725773277196,0.001816,54626.0,54625.0,0.999222]
[1725773277647,0.001816,54626.0,54625.0,1.006222]
[1725773277872,0.002816,54626.0,54625.0,1.006222]
[1725773278091,0.002816,54626.0,54625.0,0.65373]
[1725773278324,0.11071911,54626.0,54625.0,0.013]
[1725773278556,0.11071911,54626.0,54625.0,0.141146]
[1725773278767,0.1198048,54626.0,54625.0,0.141146]
[1725773279195,0.1198048,54626.0,54625.0,0.397438]
[1725773279908,0.1198048,54626.0,54625.0,0.141146]
[1725773280117,0.1198048,54626.0,54617.0,0.00163]
[1725773280118,0.128162,54618.0,54617.0,0.00163]
[1725773280369,0.64758196,54618.0,54617.0,0.00163]
[1725773280571,0.67058196,54618.0,54617.0,0.00163]
[1725773281052,0.35507322,54618.0,54617.0,0.00163]
[1725773281261,0.44396818,54618.0,54617.0,0.01563]
[1725773281493,0.70713126,54618.0,54617.0,0.01563]
[1725773281716,0.70613126,54618.0,54617.0,0.00163]
[1725773281963,0.70613126,54618.0,54617.0,0.00463]
[1725773282419,0.70904028,54618.0,54617.0,0.00463]
[1725773282634,0.73638287,54618.0,54617.0,0.00463]
[1725773283269,0.73638287,54618.0,54617.0,0.00163]
[1725773283504,0.73638287,54618.0,54617.0,0.00463]
[1725773284399,0.73638287,54618.0,54617.0,0.00163]
[1725773284645,0.73638287,54618.0,54617.0,0.00363]
[1725773285743,0.70767165,54618.0,54617.0,0.00363]
[1725773286427,0.70767165,54618.0,54617.0,0.00463]
[1725773286656,0.70767165,54618.0,54617.0,0.00263]
[1725773287327,0.70767165,54618.0,54617.0,0.00163]
[1725773287739,0.70967165,54618.0,54617.0,0.00163]
[1725773287979,0.71067165,54618.0,54617.0,0.00163]
[1725773288424,0.70967165,54618.0,54617.0,0.00163]
[1725773288846,0.70767165,54618.0,54617.0,0.00163]
[1725773289054,0.73638232,54618.0,54617.0,0.00163]
[1725773289264,0.74038232,54618.0,54617.0,0.00163]
[1725773289705,0.73638232,54618.0,54617.0,0.00163]
[1725773289933,0.48305732,54618.0,54617.0,0.00163]
[1725773290161,0.48305732,54618.0,54603.0,0.68927636]
[1725773290162,0.128183,54610.0,54603.0,0.68927636]
[1725773290381,0.17969532,54618.0,54601.0,0.128201]
[1725773290382,0.1037,54603.0,54601.0,0.128201]
[1725773290622,0.128204,54601.0,54597.0,0.128212]
[1725773290831,0.08789496,54598.0,54595.0,0.256432]
[1725773291058,0.08789496,54598.0,54597.0,0.128212]
[1725773291267,0.08789496,54598.0,54593.0,0.25644]
[1725773291487,0.08789496,54598.0,54595.0,0.128215]
[1725773291488,0.00966803,54597.0,54595.0,0.128215]
[1725773291731,0.00966803,54597.0,54594.0,0.256437]
[1725773292160,0.00966803,54597.0,54596.0,0.128214]
[1725773292358,0.03838685,54597.0,54596.0,0.128214]
[1725773293044,0.03838685,54597.0,54594.0,0.128217]
[1725773293229,0.03838685,54597.0,54595.0,0.130216]
[1725773293465,0.03838685,54597.0,54596.0,0.001]
[1725773293899,0.03838685,54597.0,54596.0,0.003]
[1725773294109,0.03838685,54597.0,54596.0,0.001]
[1725773294542,0.03838685,54597.0,54595.0,0.128216]
[1725773294751,0.06468766,54597.0,54595.0,0.128216]
[1725773295613,0.06468766,54597.0,54593.0,0.25644]
[1725773295614,0.03596884,54597.0,54594.0,0.128217]
[1725773295830,0.03596884,54597.0,54594.0,0.129217]
[1725773296266,0.03596884,54597.0,54594.0,0.128217]
[1725773296676,0.03596884,54597.0,54595.0,0.003]
[1725773296917,0.08789496,54596.0,54595.0,0.003]
[1725773297129,0.09743494,54596.0,54594.0,0.128217]
[1725773298023,0.09743494,54596.0,54595.0,0.001]
[1725773298201,0.09743494,54596.0,54594.0,0.128217]
[1725773298632,0.09843494,54596.0,54594.0,0.129217]
[1725773298827,0.09743494,54596.0,54594.0,0.128217]
[1725773298996,0.12615463,54596.0,54594.0,0.128217]
[1725773299196,0.12615463,54596.0,54594.0,0.129217]
[1725773300235,0.12615463,54596.0,54594.0,0.132217]
[1725773300646,0.12615463,54596.0,54594.0,0.131217]
[1725773300863,0.12615463,54596.0,54594.0,0.128217]
[1725773301055,0.12615463,54596.0,54594.0,0.131217]
[1725773301257,0.12615463,54596.0,54594.0,0.133217]
[1725773301883,0.12615463,54596.0,54594.0,0.131217]
[1725773302084,0.12615463,54596.0,54594.0,0.133217]
[1725773303288,0.12615463,54596.0,54594.0,0.134847]
[1725773303728,0.12615463,54596.0,54594.0,0.00663]
[1725773304587,0.12615463,54596.0,54594.0,0.00363]
[1725773304793,0.12715463,54596.0,54594.0,0.00163]
[1725773309156,0.03925967,54596.0,54594.0,0.00163]
[1725773311694,0.01053998,54596.0,54594.0,0.00163]
[1725773311900,0.01053998,54596.0,54594.0,0.00263]
[1725773312802,0.00953998,54596.0,54594.0,0.00263]
[1725773313699,0.00953998,54596.0,54594.0,0.00163]
[1725773314864,0.03825979,54596.0,54594.0,0.00263]
[1725773315096,0.03825979,54596.0,54594.0,0.00163]
[1725773315374,0.03825979,54596.0,54594.0,0.00363]
[1725773315601,0.00953998,54596.0,54594.0,0.00363]
[1725773316715,0.00953998,54596.0,54594.0,0.00463]
[1725773317138,0.00953998,54596.0,54594.0,0.129848]
[1725773317582,0.00953998,54596.0,54594.0,0.134848]
[1725773318087,0.00953998,54596.0,54594.0,0.00663]
[1725773318309,0.00953998,54596.0,54595.0,0.128216]
[1725773321104,0.00953998,54596.0,54595.0,0.131216]
[1725773321564,0.00953998,54596.0,54595.0,0.389649]
[1725773321818,0.00948359,54596.0,54595.0,0.389649]
[1725773322028,0.00205783,54596.0,54595.0,0.389649]
[1725773322487,0.00205783,54596.0,54595.0,1.000015]
[1725773322704,0.00205783,54596.0,54595.0,1.048515]
[1725773322911,0.02700861,54598.0,54597.0,0.994984]
[1725773323412,0.01917399,54603.0,54602.0,0.3846]
[1725773323661,0.01917399,54603.0,54602.0,0.641]
[1725773324754,0.0528896,54603.0,54602.0,0.641]
[1725773325209,0.0478896,54603.0,54602.0,0.641]
[1725773325429,0.07632517,54603.0,54602.0,0.643]
[1725773325862,0.08232517,54603.0,54602.0,0.643]
[1725773326763,0.08232517,54603.0,54602.0,0.641]
[1725773327008,0.07532517,54603.0,54602.0,0.641]
[1725773327227,0.07732517,54603.0,54602.0,0.646]
[1725773328543,0.04860956,54603.0,54602.0,0.646]
[1725773331441,0.04760956,54603.0,54602.0,0.9489]
[1725773331665,0.04660956,54603.0,54602.0,0.9459]
[1725773331874,0.04760956,54603.0,54602.0,0.9479]
[1725773332083,0.04860956,54603.0,54602.0,0.9509]
[1725773332509,0.04760956,54603.0,54602.0,0.9479]
[1725773332938,0.04860956,54603.0,54602.0,0.9509]
[1725773333382,0.04760956,54603.0,54602.0,0.9489]
[1725773333601,0.04860956,54603.0,54602.0,0.9509]
[1725773333842,0.07732462,54603.0,54602.0,0.9509]
[1725773334073,0.03071506,54603.0,54602.0,1.50029496]
[1725773334312,0.002,54603.0,54602.0,1.50229496]
[1725773334543,0.002,54603.0,54602.0,1.55701916]
[1725773334774,0.002,54603.0,54602.0,1.50229496]
[1725773334999,0.02684059,54611.0,54610.0,1.04087]
[1725773335422,0.000815,54617.0,54616.0,0.640837]
[1725773335634,0.02718842,54617.0,54616.0,0.640837]
[1725773335846,0.256274,54629.0,54617.0,0.256328]
[1725773336083,0.256274,54629.0,54620.0,0.128157]
[1725773336084,0.08789496,54622.0,54620.0,0.128157]
[1725773337268,0.08789496,54622.0,54621.0,0.128155]
[1725773337494,0.08789496,54622.0,54619.0,0.25632]
[1725773337769,0.08889496,54622.0,54621.0,0.128155]
[1725773337980,0.08789496,54622.0,54621.0,0.127155]
[1725773338418,0.08789496,54622.0,54619.0,0.25632]
[1725773338419,0.11660222,54622.0,54619.0,0.128159]
[1725773338631,0.11660222,54622.0,54620.0,0.128156]
[1725773338846,0.11760222,54622.0,54621.0,0.128155]
[1725773339262,0.11660222,54622.0,54621.0,0.128155]
[1725773339474,0.19380222,54622.0,54621.0,0.129155]
[1725773339915,0.19603198,54622.0,54621.0,0.129155]
[1725773340139,0.22313568,54622.0,54621.0,0.129155]
[1725773340808,0.22395068,54622.0,54621.0,0.129155]
[1725773341012,0.22395068,54622.0,54621.0,0.128155]
[1725773341220,0.22395068,54622.0,54621.0,0.130155]
[1725773341401,0.23043973,54622.0,54621.0,0.131155]
[1725773341867,0.23043973,54622.0,54621.0,0.130155]
[1725773342302,0.23043973,54622.0,54621.0,0.132155]
[1725773342515,0.23043973,54622.0,54621.0,0.004]
[1725773343380,0.23043973,54622.0,54621.0,0.002]
[1725773343864,0.23043973,54622.0,54621.0,0.004]
[1725773344083,0.23043973,54622.0,54621.0,0.002]
[1725773344980,0.23043973,54622.0,54621.0,0.004]
[1725773345412,0.23043973,54622.0,54621.0,0.002]
[1725773345638,0.23043973,54622.0,54621.0,0.004]
[1725773346253,0.20173247,54622.0,54621.0,0.004]
[1725773347991,0.23044029,54622.0,54621.0,0.004]
[1725773348410,0.20173247,54622.0,54621.0,0.004]
[1725773349066,0.096647,54622.0,54621.0,0.004]
[1725773349300,0.08956052,54622.0,54621.0,0.004]
[1725773349529,0.08956052,54622.0,54621.0,0.132155]
[1725773349530,0.00166556,54622.0,54621.0,0.132155]
[1725773350035,0.02650025,54623.0,54621.0,0.132155]
[1725773350259,0.02870843,54622.0,54621.0,0.132155]
[1725773350495,0.04788242,54622.0,54621.0,0.132155]
[1725773351375,0.04788242,54622.0,54621.0,0.130155]
[1725773351591,0.04788242,54622.0,54621.0,0.131155]
[1725773352026,0.04788242,54622.0,54621.0,0.387466]
[1725773352235,0.04788242,54622.0,54621.0,0.131155]
[1725773352696,0.04788242,54622.0,54621.0,0.130155]
[1725773353862,0.04788242,54622.0,54621.0,0.131785]
[1725773354078,0.04788242,54622.0,54621.0,0.133785]
[1725773355599,0.01917399,54622.0,54621.0,0.133785]
[1725773357895,0.04788229,54622.0,54621.0,0.133785]
[1725773358296,0.01917399,54622.0,54621.0,0.133785]
[1725773359903,0.04788221,54622.0,54621.0,0.133785]
[1725773365043,0.04788221,54622.0,54621.0,0.390096]
[1725773365287,0.04788221,54622.0,54621.0,0.133785]
[1725773365722,0.01917399,54622.0,54621.0,0.133785]
[1725773367707,0.01998899,54622.0,54621.0,0.390096]
[1725773368615,0.01998899,54622.0,54621.0,0.388096]
[1725773369061,0.01998899,54622.0,54621.0,0.391096]
[1725773369789,0.04869702,54622.0,54621.0,0.389096]
[1725773370003,0.04869702,54622.0,54621.0,0.393096]
[1725773372891,0.04869702,54622.0,54621.0,0.136785]
[1725773373252,0.04869702,54622.0,54621.0,0.393096]
[1725773375691,0.01998899,54622.0,54621.0,0.393096]
[1725773377910,0.10233891,54622.0,54621.0,0.393096]
[1725773378115,0.01998899,54622.0,54621.0,0.393096]
[1725773378599,0.10233891,54622.0,54621.0,0.393096]
[1725773378968,0.0486966,54622.0,54621.0,0.393096]
[1725773379196,0.13121387,54622.0,54621.0,0.393096]
[1725773379412,0.13121635,54622.0,54621.0,0.393096]
[1725773379633,0.18594647,54622.0,54621.0,0.393096]
[1725773381601,0.0486966,54622.0,54621.0,0.393096]
[1725773381823,0.18594647,54622.0,54621.0,0.393096]
[1725773382580,0.0486966,54622.0,54621.0,0.393096]
[1725773382793,0.18594647,54622.0,54621.0,0.136785]
[1725773383431,0.18634292,54622.0,54621.0,0.136785]
[1725773383635,0.0486966,54622.0,54621.0,0.136785]